fUSD/lending_fUSD_20240421
["ID","MTS","AMOUNT","RATE_DAILY","PERIOD"]
[323149736,1713720936254,851.66,0.00011768,2]
[323149737,1713721012777,223.40369858,0.00011937,2]
[323149738,1713721089966,163.17,0.00011683,2]
[323149739,1713721092357,159.73,0.0001177,2]
[323149740,1713721092785,159.73,0.00011803,2]
[323149741,1713721092994,159.73,0.00011835,2]
[323149742,1713721093209,159.73,0.00011867,2]
[323149743,1713721093430,159.73,0.000119,2]
[323149744,1713721093670,159.73,0.00011932,2]
[323149745,1713721093890,159.73,0.00011964,2]
[323149746,1713721094161,159.73,0.00011996,2]
[323149747,1713721101885,1791.4,0.00011323,2]
[323149748,1713721114000,513.45,0.0001611,10]
[323149749,1713721142713,150.0,0.00012021,2]
[323149750,1713721142800,150.0,0.00012021,2]
[323149751,1713721149216,155.0,0.0001202,2]
[323149752,1713721152315,194.35396704,0.0001202,2]
[323149753,1713721154436,155.0,0.0001202,2]
[323149754,1713721156043,2320.65,0.00011423,2]
[323149755,1713721157393,192.70495298,0.0001202,2]
[323149756,1713721159215,155.0,0.0001202,2]
[323149757,1713721167984,155.0,0.0001202,2]
[323149758,1713721178336,363.15940458,0.0001202,2]
[323149759,1713721182471,1873.51,0.00011477,2]
[323149760,1713721185562,155.0,0.0001202,2]
[323149761,1713721186276,207.72132305,0.0001202,2]
[323149762,1713721192498,684.0277903,0.0001202,2]
[323149763,1713721195026,2999.50193074,0.0001202,2]
[323149764,1713721205522,246.31919169,0.00011425,2]
[323149765,1713721210607,155.30252456,0.00011425,2]
[323149766,1713721213972,160.0,0.00011484,2]
[323149767,1713721257653,2856.6536,0.00011936,2]
[323149768,1713721264244,706.34979977,0.0001202,2]
[323149769,1713721301640,971.53,0.00011486,2]
[323149770,1713721320864,1220.67551642,0.00012,2]
[323149771,1713721338268,487.3,0.00011428,2]
[323149772,1713721341525,190.15,0.00011428,2]
[323149773,1713721358561,1577.21,0.00011435,2]
[323149774,1713721364139,1003.14,0.00011438,2]
[323149775,1713721367817,2345.6288,0.00011955,2]
[323149776,1713721377406,253.91280758,0.000273,120]
[323149777,1713721391418,713.83,9.524e-05,2]
[323149778,1713721391628,713.83,0.00011788,2]
[323149779,1713721447320,155.0,0.0001202,2]
[323149780,1713721449185,250.0,0.00011441,2]
[323149781,1713721481113,174.23,0.00011434,2]
[323149782,1713721561259,536.64463076,0.0001202,2]
[323149783,1713721567496,313.4,0.00011406,2]
[323149784,1713721585756,159.19,0.0001177,2]
[323149785,1713721585964,159.19,0.00011821,2]
[323149786,1713721586213,159.19,0.00011872,2]
[323149787,1713721586432,159.19,0.00011923,2]
[323149788,1713721586634,159.19,0.00011974,2]
[323149789,1713721624894,481.35,0.0001611,10]
[323149790,1713721714782,9410.09,0.0001153,2]
[323149791,1713721716221,872.0,0.0001153,2]
[323149792,1713721749249,166.63,0.00011501,2]
[323149793,1713721766657,1248.67,0.00011501,2]
[323149800,1713721832002,-450.037073,0.00012024,2]
[323149801,1713721832014,-193.41702076,0.00012024,2]
[323149802,1713721832024,-159.19,0.00012025,2]
[323149803,1713721832033,-147.12153924,0.00012055,2]
[323149804,1713721832045,-2.87846076,0.00012055,2]
[323149805,1713721832055,-150.0,0.00012074,2]
[323149806,1713721832064,-494.56653924,0.00012075,2]
[323149807,1713721832081,-10906.69540963,0.00012075,2]
[323149808,1713721832091,-3089.32950186,0.00012076,2]
[323149809,1713721832101,-159.19,0.00012076,2]
[323149810,1713721832111,-508.53209349,0.00012083,2]
[323149811,1713721832121,-159.19,0.00012127,2]
[323149812,1713721832130,-499.99,0.00012127,2]
[323149813,1713721832139,-1449.09902065,0.00012127,2]
[323149814,1713721832159,-6850.57097935,0.00012127,2]
[323149815,1713721832168,-150.99,0.00012127,2]
[323149816,1713721832177,-159.19,0.00012179,2]
[323149817,1713721832186,-10773.63,0.00012179,2]
[323149818,1713721832195,-159.19,0.0001223,2]
[323149819,1713721832205,-159.19,0.00012281,2]
[323149820,1713721832214,-159.19,0.00012332,2]
[323149821,1713721832223,-537.35627901,0.00012347,2]
[323149822,1713721832232,-159.19,0.00012383,2]
[323149823,1713721832243,-54488.6423,0.00012396,2]
[323149824,1713721832253,-1165.74090084,0.00012397,2]
[323149825,1713721832262,-283.31426977,0.00012485,2]
[323149826,1713721832271,-1241.03910676,0.00012494,2]
[323149827,1713721832280,-166224.58170888,0.00012495,2]
[323149828,1713721832292,-1197.98964087,0.00012495,2]
[323149829,1713721832304,-625.71776094,0.00012495,2]
[323149831,1713721832345,-13440.13964338,0.00012495,2]
[323149833,1713721832357,-24202.18642409,0.00012495,2]
[323149836,1713721832369,-738.36762147,0.00012495,2]
[323149840,1713721832398,-400.0,0.00012495,2]
[323149842,1713721832408,-7572.04826598,0.00012495,2]
[323149938,1713721833296,-1256.0721124,0.00012495,2]
[323149940,1713721833307,-960.42655982,0.00012495,2]
[323150025,1713721837708,-2435.35820734,0.00012495,2]
[323150026,1713721837816,-327057.19705442,0.00012495,2]
[323150027,1713721837826,-776935.7264,0.00012496,2]
[323150028,1713721837835,-1291.3552,0.00012497,2]
[323150029,1713721837845,-190.0,0.00012595,2]
[323150030,1713721837854,-4454.9542,0.00012597,2]
[323150031,1713721837864,-4414.7549,0.00012597,2]
[323150032,1713721837873,-10463.9914,0.00012597,2]
[323150033,1713721837882,-26328.2317,0.00012597,2]
[323150034,1713721837892,-7675.5847,0.00012597,2]
[323150035,1713721837901,-772.5805,0.00012597,2]
[323150036,1713721837910,-6787.6748,0.00012597,2]
[323150037,1713721837919,-1955.0239,0.00012597,2]
[323150038,1713721837928,-1474.1292,0.00012597,2]
[323150039,1713721837938,-3938.2225,0.00012597,2]
[323150040,1713721837947,-207156.60217026,0.000126,4]
[323150041,1713721837956,-219.89815157,0.00012695,2]
[323150042,1713721837966,-194.08024151,0.00012695,2]
[323150043,1713721837976,-192.32263462,0.00012695,2]
[323150044,1713721837985,-246.18771344,0.00012695,2]
[323150045,1713721837995,-361.37677301,0.00012695,2]
[323150046,1713721838004,-186.9124871,0.00012695,2]
[323150047,1713721838014,-286.32224343,0.00012695,2]
[323150048,1713721838024,-687.34055017,0.00012695,2]
[323150049,1713721838033,-528.10394388,0.00012695,2]
[323150050,1713721838042,-214.00741216,0.00012695,2]
[323150051,1713721838052,-300.95792734,0.00012696,2]
[323150052,1713721838061,-79649.3102,0.00012698,2]
[323150053,1713721838071,-70944.1694,0.00012698,2]
[323150054,1713721838080,-206.0608428,0.000127,2]
[323150055,1713721838090,-171.25018801,0.00012767,2]
[323150057,1713721838098,-493.8080664,0.00012767,2]
[323150058,1713721838108,-292956.07634925,0.000128,2]
[323150059,1713721838117,-1000.0,0.000128,2]
[323150060,1713721838126,-1000.0,0.000128,2]
[323150061,1713721838135,-1000.0,0.000128,2]
[323150062,1713721838145,-1000.0,0.000128,2]
[323150063,1713721838154,-1240.0,0.000128,2]
[323150064,1713721838163,-1000.0,0.000128,2]
[323150065,1713721838173,-1000.0,0.000128,2]
[323150066,1713721838182,-1000.0,0.000128,2]
[323150068,1713721838191,-1000.0,0.000128,2]
[323150070,1713721838201,-251.08783605,0.00012867,2]
[323150071,1713721838210,-178.07426507,0.00012869,2]
[323150072,1713721838219,-1074.19701,0.0001287,2]
[323150073,1713721838228,-1000.0,0.00012895,2]
[323150074,1713721838237,-500.0,0.00012895,2]
[323150075,1713721838247,-1000.0,0.00012896,2]
[323150076,1713721838256,-1000.0,0.00012896,2]
[323150077,1713721838265,-500.0,0.00012896,2]
[323150078,1713721838275,-565.8337,0.00012897,2]
[323150079,1713721838284,-2154.2782,0.00012897,2]
[323150080,1713721838293,-192.7732,0.00012897,2]
[323150081,1713721838303,-831.0,0.000129,2]
[323150082,1713721838312,-206.06084279,0.000129,2]
[323150083,1713721838322,-1310.48706154,0.000129,2]
[323150084,1713721838331,-1310.48706149,0.000129,2]
[323150085,1713721838340,-1310.48706149,0.000129,2]
[323150086,1713721838349,-1310.48706149,0.000129,2]
[323150087,1713721838358,-1310.48706149,0.000129,2]
[323150088,1713721838367,-1310.48706149,0.000129,2]
[323150089,1713721838376,-1310.48706149,0.000129,2]
[323150090,1713721838385,-1310.48706149,0.000129,2]
[323150091,1713721838395,-192.99208605,0.000129,2]
[323150092,1713721838404,-362.95249014,0.000129,2]
[323150093,1713721838413,-565.23931452,0.000129,2]
[323150094,1713721838423,-160.0,0.0001292,2]
[323150095,1713721838434,-652.5349,0.00012935,2]
[323150096,1713721838443,-872.0,0.00012971,2]
[323150097,1713721838453,-552.32195113,0.0001299,2]
[323150098,1713721838466,-262.16181551,0.00012997,2]
[323150099,1713721838476,-378.73208926,0.00012997,2]
[323150100,1713721838485,-211.73980717,0.00012997,2]
[323150101,1713721838496,-155.0,0.00012997,2]
[323150102,1713721838505,-156.94283025,0.00012997,2]
[323150103,1713721838514,-309.35986859,0.00012997,2]
[323150104,1713721838523,-155.0,0.00012997,2]
[323150105,1713721838532,-2776.30392158,0.00012997,2]
[323150106,1713721838541,-161.35607132,0.00012997,2]
[323150107,1713721838551,-308.3922186,0.00012997,2]
[323150108,1713721838560,-160.54760035,0.00012997,2]
[323150109,1713721838573,-204.88286234,0.00012997,2]
[323150110,1713721838582,-194.01529019,0.00012997,2]
[323150111,1713721838591,-206.61223645,0.00012997,2]
[323150112,1713721838600,-155.0,0.00012997,2]
[323150113,1713721838611,-348.58580176,0.00012997,2]
[323150114,1713721838620,-201.64702608,0.00012997,2]
[323150115,1713721838630,-155.73191531,0.00012997,2]
[323150116,1713721838639,-156.71498887,0.00012997,2]
[323150117,1713721838649,-709.0836062,0.00012997,2]
[323150118,1713721838660,-4401.60261938,0.00012997,2]
[323150119,1713721838670,-164.37921201,0.00012997,2]
[323150120,1713721838679,-769.70909584,0.00012997,2]
[323150121,1713721838689,-155.0,0.00012997,2]
[323150122,1713721838699,-245.80054574,0.00012997,2]
[323150123,1713721838708,-155.0,0.00012997,2]
[323150124,1713721838718,-155.0,0.00012997,2]
[323150125,1713721838727,-267.09258882,0.00012997,2]
[323150126,1713721838736,-313.58324232,0.00012997,2]
[323150127,1713721838748,-155.39161747,0.00012997,2]
[323150128,1713721838758,-271.59951734,0.00012997,2]
[323150129,1713721838767,-200.07852027,0.00012997,2]
[323150130,1713721838776,-486.33746817,0.00012997,2]
[323150131,1713721838785,-165.55205458,0.00012997,2]
[323150132,1713721838795,-166.42861037,0.00012997,2]
[323150133,1713721838805,-277.78803159,0.00012997,2]
[323150134,1713721838814,-208.96057669,0.00012997,2]
[323150135,1713721838824,-170.18899836,0.00012997,2]
[323150136,1713721838833,-235.82557035,0.00012997,2]
[323150137,1713721838844,-23317.44939789,0.00012997,2]
[323150138,1713721838853,-155.0,0.00012997,2]
[323150139,1713721838862,-157.78253506,0.00012997,2]
[323150140,1713721838872,-408.04988804,0.00012997,2]
[323150141,1713721838883,-207.76281559,0.00012997,2]
[323150142,1713721838892,-32335.08811719,0.00012997,2]
[323150143,1713721838903,-1762.31905022,0.00012997,2]
[323150144,1713721838912,-1058.76687777,0.00012997,2]
[323150145,1713721838921,-290.81414345,0.00012998,2]
[323150146,1713721838931,-10310.81352391,0.00012998,2]
[323150147,1713721839100,-1350.93200741,0.00012999,2]
[323150148,1713721839109,-410.32117245,0.00012999,2]
[323150149,1713721839120,-186.58813403,0.00012999,2]
[323150150,1713721839128,-5843.71883814,0.00012999,2]
[323150151,1713721839138,-12016.58,0.00013,2]
[323150152,1713721839147,-9895696.72286769,0.00013,2]
[323150153,1713721839157,-62190.35996847,0.00013,2]
[323150154,1713721839166,-551.33,0.00013,2]
[323150155,1713721839175,-171.3,0.00013005,2]
[323150156,1713721839185,-493.8080663,0.0001313,2]
[323150157,1713721839194,-214.17,0.0001328,2]
[323150158,1713721839204,-210.0,0.00013281,2]
[323150159,1713721839213,-1074.19701,0.0001339,2]
[323150160,1713721839222,-500.0,0.00013425,2]
[323150161,1713721839231,-152.69,0.00013461,2]
[323150162,1713721839242,-493.8080663,0.00013493,2]
[323150163,1713721839252,-150.0,0.000135,2]
[323150164,1713721839262,-150.0,0.00013567,2]
[323150165,1713721839271,-200.0,0.00013699,2]
[323150166,1713721839280,-200.0,0.00013699,2]
[323150167,1713721839289,-200.0,0.00013699,2]
[323150168,1713721839298,-200.0,0.00013699,2]
[323150169,1713721839309,-500.0,0.00013699,2]
[323150170,1713721839318,-500.0,0.00013699,2]
[323150171,1713721839327,-500.0,0.00013699,2]
[323150172,1713721839336,-500.0,0.00013699,2]
[323150173,1713721839345,-516.488393,0.00013699,2]
[323150174,1713721839355,-200.0,0.00013699,2]
[323150175,1713721839364,-161.35,0.00013699,2]
[323150176,1713721839373,-1500.0,0.00013699,2]
[323150177,1713721839383,-1153.97,0.00013699,2]
[323150178,1713721839392,-500.0,0.00013699,2]
[323150179,1713721839401,-6049.86,0.00013699,2]
[323150180,1713721839410,-200.0,0.00013699,2]
[323150181,1713721839420,-6187.81,0.00013699,2]
[323150182,1713721839429,-2751.0,0.00013699,2]
[323150183,1713721839438,-300.0,0.00013699,2]
[323150184,1713721839447,-300.0,0.00013699,2]
[323150185,1713721839456,-300.0,0.00013699,2]
[323150186,1713721839466,-1250.0,0.000137,2]
[323150187,1713721839475,-250.0,0.000137,2]
[323150188,1713721839485,-371.79860069,0.000137,2]
[323150189,1713721839496,-493.8080663,0.00013856,2]
[323150190,1713721839506,-5569.34,0.00013973,2]
[323150191,1713721839515,-151.37,0.00014,2]
[323150192,1713721839525,-151.37,0.00014,2]
[323150193,1713721839534,-151.37,0.00014,2]
[323150194,1713721839543,-151.37,0.00014,2]
[323150195,1713721839554,-151.37,0.00014,2]
[323150196,1713721839568,-151.37,0.00014,2]
[323150197,1713721839578,-151.37,0.00014,2]
[323150199,1713721839587,-151.37,0.00014,2]
[323150201,1713721839596,-151.37,0.00014,2]
[323150202,1713721839607,-151.37,0.00014,2]
[323150203,1713721839616,-151.37,0.00014,2]
[323150204,1713721839626,-151.37,0.00014,2]
[323150206,1713721839637,-151.37,0.00014,2]
[323150207,1713721839646,-151.37,0.00014,2]
[323150208,1713721839656,-151.37,0.00014,2]
[323150209,1713721839666,-151.37,0.00014,2]
[323150210,1713721839675,-151.37,0.00014,2]
[323150211,1713721839685,-151.37,0.00014,2]
[323150212,1713721839694,-151.37,0.00014,2]
[323150213,1713721839704,-151.37,0.00014,2]
[323150214,1713721839714,-151.37,0.00014,2]
[323150215,1713721839724,-151.37,0.00014,2]
[323150217,1713721839734,-151.37,0.00014,2]
[323150218,1713721839743,-151.37,0.00014,2]
[323150219,1713721839752,-151.37,0.00014,2]
[323150220,1713721839762,-151.37,0.00014,2]
[323150221,1713721839771,-151.37,0.00014,2]
[323150222,1713721839782,-151.37,0.00014,2]
[323150223,1713721839791,-151.37,0.00014,2]
[323150224,1713721839800,-151.37,0.00014,2]
[323150225,1713721839808,-151.37,0.00014,2]
[323150226,1713721839818,-151.37,0.00014,2]
[323150227,1713721839827,-151.37,0.00014,2]
[323150228,1713721839837,-151.37,0.00014,2]
[323150229,1713721839846,-151.37,0.00014,2]
[323150230,1713721839855,-500.0,0.00014,2]
[323150231,1713721839865,-1074.19701,0.0001402,2]
[323150232,1713721839874,-713.83,0.00014052,2]
[323150233,1713721839884,-362.95249012,0.0001415,2]
[323150234,1713721839893,-565.2393145,0.0001415,2]
[323150235,1713721839903,-500.0,0.0001418,2]
[323150236,1713721839912,-522.01992354,0.0001418,2]
[323150237,1713721839922,-1700.0,0.0001418,2]
[323150238,1713721839931,-493.8080663,0.00014219,2]
[323150239,1713721839940,-1248.67,0.00014241,2]
[323150240,1713721839950,-169.011771,0.00014247,2]
[323150241,1713721839960,-160.0,0.00014355,2]
[323150242,1713721839969,-171.3,0.00014385,2]
[323150243,1713721839979,-872.0,0.00014412,2]
[323150244,1713721839989,-493.8080663,0.00014582,2]
[323150245,1713721839998,-293.0,0.00014609,2]
[323150246,1713721840008,-161.35,0.00014612,2]
[323150247,1713721840017,-1074.19701,0.0001465,2]
[323150248,1713721840026,-214.17,0.00014756,2]
[323150249,1713721840036,-174.68,0.00014877,2]
[323150250,1713721840045,-493.8080663,0.00014944,2]
[323150251,1713721840055,-5000.0,0.00015,2]
[323150252,1713721840065,-8581.71462953,0.00015,2]
[323150253,1713721840075,-259.19772457,0.00015,3]
[323150254,1713721840084,-686.0,0.00015,2]
[323150255,1713721840093,-1861.0,0.00015,2]
[323150256,1713721840103,-750.0,0.00015,2]
[323150257,1713721840112,-763.12986638,0.00015,2]
[323150258,1713721840122,-1700.0,0.00015002,2]
[323150259,1713721840132,-221.0,0.0001505,2]
[323150260,1713721840141,-169.011771,0.00015068,2]
[323150261,1713721840151,-1798.04161024,0.0001517,2]
[323150262,1713721840160,-1074.19701,0.0001527,2]
[323150263,1713721840169,-493.8080663,0.00015307,2]
[323150264,1713721840179,-362.95249012,0.000154,2]
[323150265,1713721840189,-565.2393145,0.000154,2]
[323150266,1713721840198,-300.0,0.00015499,2]
[323150267,1713721840208,-1663794.97889171,0.000155,2]
[323150268,1713721840219,-236996.46696917,0.000155,2]
[323150269,1713721840263,-13003.53303083,0.000155,2]
[323150270,1713721840273,-161.35,0.00015525,2]
[323150271,1713721840282,-300.0,0.00015593,2]
[323150273,1713721840292,-300.0,0.00015593,2]
[323150274,1713721840301,-10000.0,0.00015616,2]
[323150276,1713721840310,-10000.0,0.00015616,2]
[323150277,1713721840319,-8235.96,0.00015616,2]
[323150278,1713721840329,-6254.84640997,0.00015616,2]
[323150279,1713721840337,-493.8080663,0.0001567,2]
[323150280,1713721840346,-541.0,0.00015685,2]
[323150281,1713721840355,-195.0,0.00015685,2]
[323150282,1713721840364,-527.18,0.00015685,2]
[323150283,1713721840374,-13392.374,0.00015685,2]
[323150284,1713721840384,-1055.0,0.00015685,2]
[323150285,1713721840393,-171.3,0.00015765,2]
[323150286,1713721840403,-160.0,0.00015791,2]
[323150287,1713721840412,-300.0,0.00015793,2]
[323150288,1713721840421,-500.0,0.00015824,2]
[323150289,1713721840430,-1700.0,0.00015824,2]
[323150290,1713721840439,-872.0,0.00015853,2]
[323150291,1713721840450,-1074.19701,0.0001589,2]
[323150292,1713721840460,-169.011771,0.0001589,2]
[323150293,1713721840470,-12606.8557406,0.000159,2]
[323150294,1713721840480,-300.0,0.00015993,2]
[323150295,1713721840490,-1000.0,0.00016,2]
[323150296,1713721840500,-155.0,0.00016,2]
[323150297,1713721840510,-151.11010631,0.00016029,2]
[323150298,1713721840519,-493.8080663,0.00016033,2]
[323150299,1713721840529,-361.0,0.0001607,2]
[323150300,1713721840538,-1335.6194682,0.00016098,2]
[323150301,1713721840547,-21003.1128285,0.00016098,2]
[323150302,1713721840556,-500.8389359,0.00016098,2]
[323150303,1713721840568,-884.2494354,0.00016098,2]
[323150304,1713721840577,-4233.6568325,0.00016098,2]
[323150305,1713721840586,-1631.25195372,0.00016109,2]
[323150306,1713721840595,-155.0,0.0001611,2]
[323150307,1713721840605,-258.06176476,0.0001611,2]
[323150308,1713721840615,-600.0,0.0001611,2]
[323150309,1713721840624,-336.29023423,0.00016193,2]
[323150310,1713721840634,-2316.03954563,0.00016212,2]
[323150311,1713721840652,-202.132064,0.00016228,2]
[323150312,1713721840681,-150.608508,0.00016228,2]
[323150313,1713721840690,-186.867983,0.00016228,2]
[323150314,1713721840698,-152.625433,0.00016228,2]
[323150315,1713721840707,-150.476628,0.00016228,2]
[323150316,1713721840716,-214.17,0.00016231,2]
[323150317,1713721840726,-1000.0,0.00016273,2]
[323150318,1713721840736,-19500.61089074,0.0001628,2]
[323150319,1713721840747,-2500.0,0.00016312,2]
[323150320,1713721840756,-713.83,0.00016316,2]
[323150321,1713721840766,-788.0,0.00016329,2]
[323150322,1713721840776,-564.0,0.00016329,2]
[323150323,1713721840786,-1000.0,0.00016355,2]
[323150324,1713721840796,-493.8080663,0.00016396,2]
[323150325,1713721840807,-482.0,0.000164,2]
[323150326,1713721840818,-152.625433,0.00016431,2]
[323150327,1713721840828,-300.0,0.00016437,2]
[323150328,1713721840838,-500.0,0.00016438,2]
[323150329,1713721840847,-500.0,0.00016438,2]
[323150330,1713721840857,-500.0,0.00016438,2]
[323150331,1713721840867,-500.0,0.00016438,2]
[323150332,1713721840876,-500.0,0.00016438,2]
[323150333,1713721840885,-267.40095844,0.00016438,2]
[323150334,1713721840895,-500.0,0.00016438,2]
[323150335,1713721840904,-500.0,0.00016438,2]
[323150336,1713721840914,-500.0,0.00016438,2]
[323150337,1713721840923,-500.0,0.00016438,2]
[323150338,1713721840933,-500.0,0.00016438,2]
[323150339,1713721840942,-500.0,0.00016438,2]
[323150340,1713721840952,-500.0,0.00016438,2]
[323150341,1713721840961,-500.0,0.00016438,2]
[323150342,1713721840971,-500.0,0.00016438,2]
[323150343,1713721840981,-500.0,0.00016438,2]
[323150344,1713721840991,-500.0,0.00016438,2]
[323150345,1713721841000,-500.0,0.00016438,2]
[323150346,1713721841010,-500.0,0.00016438,2]
[323150347,1713721841020,-500.0,0.00016438,2]
[323150348,1713721841030,-500.0,0.00016438,2]
[323150349,1713721841040,-444.05092147,0.00016438,2]
[323150350,1713721841051,-245.02699365,0.00016438,2]
[323150351,1713721841062,-500.0,0.00016438,2]
[323150352,1713721841071,-500.0,0.00016438,2]
[323150353,1713721841080,-500.0,0.00016438,2]
[323150354,1713721841090,-500.0,0.00016438,2]
[323150355,1713721841100,-500.0,0.00016438,2]
[323150356,1713721841110,-500.0,0.00016438,2]
[323150357,1713721841120,-500.0,0.00016438,2]
[323150358,1713721841130,-500.0,0.00016438,2]
[323150359,1713721841140,-500.0,0.00016438,2]
[323150360,1713721841150,-500.0,0.00016438,2]
[323150361,1713721841300,-629.55661049,0.00016438,2]
[323150362,1713721841310,-500.0,0.00016438,2]
[323150363,1713721841320,-500.0,0.00016438,2]
[323150364,1713721841330,-500.0,0.00016438,2]
[323150365,1713721841341,-500.0,0.00016438,2]
[323150366,1713721841350,-500.0,0.00016438,2]
[323150367,1713721841359,-500.0,0.00016438,2]
[323150368,1713721841368,-500.0,0.00016438,2]
[323150369,1713721841377,-500.0,0.00016438,2]
[323150370,1713721841386,-500.0,0.00016438,2]
[323150371,1713721841395,-500.0,0.00016438,2]
[323150372,1713721841405,-500.0,0.00016438,2]
[323150373,1713721841414,-500.0,0.00016438,2]
[323150374,1713721841423,-500.0,0.00016438,2]
[323150375,1713721841432,-500.0,0.00016438,2]
[323150376,1713721841441,-500.0,0.00016438,2]
[323150377,1713721841450,-500.0,0.00016438,2]
[323150378,1713721841460,-500.0,0.00016438,2]
[323150379,1713721841472,-500.0,0.00016438,2]
[323150380,1713721841481,-500.0,0.00016438,2]
[323150381,1713721841490,-500.0,0.00016438,2]
[323150382,1713721841500,-500.0,0.00016438,2]
[323150383,1713721841510,-500.0,0.00016438,2]
[323150384,1713721841521,-295.97448795,0.00016438,2]
[323150385,1713721841530,-500.0,0.00016438,2]
[323150386,1713721841540,-500.0,0.00016438,2]
[323150387,1713721841550,-500.0,0.00016438,2]
[323150388,1713721841560,-500.0,0.00016438,2]
[323150389,1713721841574,-500.0,0.00016438,2]
[323150390,1713721841584,-500.0,0.00016438,2]
[323150391,1713721841594,-500.0,0.00016438,2]
[323150392,1713721841604,-500.0,0.00016438,2]
[323150393,1713721841614,-500.0,0.00016438,2]
[323150394,1713721841624,-500.0,0.00016438,2]
[323150395,1713721841633,-500.0,0.00016438,2]
[323150396,1713721841643,-500.0,0.00016438,2]
[323150397,1713721841655,-500.0,0.00016438,2]
[323150398,1713721841665,-500.0,0.00016438,2]
[323150399,1713721841674,-500.0,0.00016438,2]
[323150400,1713721841684,-500.0,0.00016438,2]
[323150401,1713721841694,-500.0,0.00016438,2]
[323150402,1713721841704,-500.0,0.00016438,2]
[323150403,1713721841714,-500.0,0.00016438,2]
[323150404,1713721841724,-500.0,0.00016438,2]
[323150405,1713721841734,-500.0,0.00016438,2]
[323150406,1713721841743,-500.0,0.00016438,2]
[323150407,1713721841753,-500.0,0.00016438,2]
[323150408,1713721841763,-500.0,0.00016438,2]
[323150409,1713721841772,-500.0,0.00016438,2]
[323150410,1713721841782,-500.0,0.00016438,2]
[323150411,1713721841791,-500.0,0.00016438,2]
[323150412,1713721841801,-500.0,0.00016438,2]
[323150413,1713721841810,-500.0,0.00016438,2]
[323150414,1713721841820,-500.0,0.00016438,2]
[323150415,1713721841829,-500.0,0.00016438,2]
[323150416,1713721841839,-500.0,0.00016438,2]
[323150417,1713721841849,-500.0,0.00016438,2]
[323150418,1713721841858,-500.0,0.00016438,2]
[323150419,1713721841868,-500.0,0.00016438,2]
[323150420,1713721841878,-500.0,0.00016438,2]
[323150421,1713721841887,-500.0,0.00016438,2]
[323150422,1713721841897,-500.0,0.00016438,2]
[323150423,1713721841908,-500.0,0.00016438,2]
[323150424,1713721841918,-500.0,0.00016438,2]
[323150425,1713721841927,-500.0,0.00016438,2]
[323150426,1713721841937,-500.0,0.00016438,2]
[323150427,1713721841947,-500.0,0.00016438,2]
[323150428,1713721841956,-500.0,0.00016438,2]
[323150429,1713721841967,-500.0,0.00016438,2]
[323150430,1713721841977,-500.0,0.00016438,2]
[323150431,1713721841987,-500.0,0.00016438,2]
[323150432,1713721841998,-500.0,0.00016438,2]
[323150433,1713721842008,-500.0,0.00016438,2]
[323150434,1713721842019,-500.0,0.00016438,2]
[323150435,1713721842029,-500.0,0.00016438,2]
[323150436,1713721842038,-500.0,0.00016438,2]
[323150437,1713721842048,-500.0,0.00016438,2]
[323150438,1713721842057,-500.0,0.00016438,2]